bitfinex-derivatives/quotes_ETHF0:USTF0_20250712
["timestamp","ask_amount","ask_price","bid_price","bid_amount"]
[1752358572403,4.1105789,2932.0,2931.9,2.27941]
[1752358573303,2.5701,2932.0,2931.9,2.27941]
[1752358573597,2.5701,2932.0,2931.9,2.70011]
[1752358573997,3.2078,2932.2,2932.1,0.68187]
[1752358574199,4.1879,2932.2,2932.1,2.63107]
[1752358574505,5.1451,2932.2,2932.1,2.63107]
[1752358575297,4.1879,2932.2,2932.1,2.63107]
[1752358575802,5.1451,2932.2,2932.1,2.63107]
[1752358575995,5.7585,2932.2,2932.1,2.63107]
[1752358576500,2.5507,2932.2,2932.1,2.63107]
[1752358576702,3.4092889,2932.2,2932.1,2.21037]
[1752358592618,2.5507,2932.2,2932.1,2.21037]
[1752358600622,2.5445,2932.4,2932.3,1.33672]
[1752358600824,2.5445,2932.4,2932.3,2.67482]
[1752358604120,2.5445,2932.4,2932.3,1.33672]
[1752358604819,3.2263,2932.4,2932.3,1.33672]
[1752358605022,2.5445,2932.4,2932.3,1.33672]
[1752358608635,3.2263,2932.4,2932.3,1.33672]
[1752358609735,2.5445,2932.4,2932.3,1.33672]
[1752358612041,2.5445,2932.4,2932.3,2.25372]
[1752358614539,2.5445,2932.4,2932.3,1.33672]
[1752358617142,2.5445,2932.4,2932.3,2.25372]
[1752358617643,2.5445,2932.4,2932.3,1.33672]
[1752358620440,2.5445,2932.4,2932.3,2.25372]
[1752358622045,2.5445,2932.4,2932.3,1.33672]
[1752358622546,5.7523,2932.4,2932.3,0.68182]
[1752358622746,2.5445,2932.2,2932.1,0.68185]
[1752358622946,3.4030889,2932.2,2932.1,0.68185]
[1752358623246,4.0849289,2932.2,2932.1,0.68185]
[1752358624445,2.27267,2932.1,2932.0,0.68188]
[1752358624746,3.4030889,2932.1,2932.0,0.68188]
[1752358625644,4.0849589,2932.1,2932.0,0.68188]
[1752358626046,3.2535,2932.0,2931.9,1.33681]
[1752358626245,4.1120889,2932.0,2931.9,1.33681]
[1752358627147,3.4301889,2932.0,2931.9,1.33681]
[1752358629148,4.1120789,2932.0,2931.9,0.6549]
[1752358629348,0.6279,2931.8,2931.7,0.6571]
[1752358629650,0.6279,2931.8,2931.7,0.68196]
[1752358629651,3.1139289,2931.8,2931.7,0.68196]
[1752358629851,0.6279,2931.6,2931.5,23.88599]
[1752358630046,1.5734,2931.3,2931.2,3.88988]
[1752358630248,3.4219889,2931.3,2931.2,0.68208]
[1752358630443,3.4219889,2931.3,2931.1,0.68209]
[1752358630444,0.99,2931.2,2931.1,0.68209]
[1752358630643,2.5634,2931.2,2931.1,0.68209]
[1752358632354,2.5634,2931.0,2930.9,0.68215]
[1752358632848,2.5634,2931.0,2930.9,2.69325]
[1752358633049,0.9455,2931.0,2930.9,2.69325]
[1752358633957,2.5634,2931.0,2930.9,2.69325]
[1752358634246,2.5634,2930.5,2930.4,4.8006]
[1752358634450,2.5634,2930.5,2930.4,5.48286]
[1752358634947,0.9455,2930.5,2930.4,5.90116]
[1752358635348,1.9355,2930.5,2930.4,5.90116]
[1752358636047,0.99,2930.7,2930.6,0.68222]
[1752358636353,2.5634,2930.7,2930.6,2.69332]
[1752358636652,2.5634,2930.7,2930.6,2.27502]
[1752358639548,0.9455,2930.7,2930.6,2.69332]
[1752358639752,1.6179,2931.0,2930.9,2.27495]
[1752358640255,2.5634,2931.0,2930.9,2.27495]
[1752358640952,2.5634,2931.0,2930.9,1.33925]
[1752358641656,2.5634,2931.0,2930.9,2.27495]
[1752358643648,2.5634,2931.0,2930.9,2.69325]
[1752358643847,0.9455,2931.0,2930.9,2.69325]
[1752358644050,1.9355,2931.2,2931.1,2.6932]
[1752358644457,2.5634,2931.2,2931.1,2.6932]
[1752358644953,2.5634,2931.2,2931.1,1.3392]
[1752358645154,0.6279,2930.9,2930.8,24.56527]
[1752358645357,2.5634,2930.9,2930.8,25.50097]
[1752358646259,2.5634,2930.9,2930.8,24.56527]
[1752358650656,3.24555,2930.9,2930.8,23.8831]
[1752358650959,3.24555,2930.9,2930.8,23.226]
[1752358651153,0.6279,2930.5,2930.4,3.8649]
[1752358651358,3.4219889,2930.5,2930.4,27.78016]
[1752358651562,2.5634,2930.5,2930.4,28.71586]
[1752358652460,2.5634,2930.5,2930.4,27.78016]
[1752358653960,2.5634,2930.5,2930.4,4.54716]
[1752358654163,3.4219889,2930.5,2930.4,27.77916]
[1752358654357,1.9355,2930.4,2930.0,3.2078]
[1752358654562,2.5634,2930.1,2930.0,5.48295]
[1752358654758,2.5634,2930.1,2930.0,28.71495]
[1752358655253,4.1043189,2930.1,2930.0,3.2078]
[1752358655460,2.5634,2929.7,2929.6,3.2078]
[1752358655660,2.5634,2929.7,2929.6,27.14325]
[1752358655661,3.4219889,2929.7,2929.6,27.14325]
[1752358656563,2.5634,2929.7,2929.6,27.80035]
[1752358657359,3.4219889,2929.7,2929.6,3.89025]
[1752358657560,3.4219889,2929.7,2929.6,0.68245]
[1752358657861,3.4219889,2929.7,2929.6,1.28815]
[1752358658163,0.6204,2930.1,2930.0,0.68235]
[1752358658364,0.6204,2930.1,2930.0,1.28805]
[1752358658365,1.5769,2930.1,2930.0,1.28805]
[1752358658870,2.516,2930.1,2930.0,1.28805]
[1752358659567,2.516,2930.1,2930.0,2.25955]
[1752358660266,2.516,2930.1,2930.0,1.28805]
[1752358660669,2.516,2930.1,2929.6,0.68245]
[1752358660670,2.516,2929.7,2929.6,0.68245]
[1752358660862,3.3745889,2929.7,2929.5,0.68246]
[1752358661063,3.3745889,2929.7,2929.6,0.68245]
[1752358661263,2.1614089,2929.7,2929.5,0.68245]
[1752358661460,2.516,2929.6,2929.5,0.68245]
[1752358661664,1.5595,2929.6,2929.5,0.68245]
[1752358661868,2.516,2929.6,2929.5,1.28815]
[1752358663667,2.516,2929.6,2929.5,0.6057]
[1752358663869,2.516,2929.5,2929.4,23.298]
[1752358664059,2.516,2929.5,2929.4,23.98049]
[1752358664870,3.3745889,2929.5,2929.4,23.98049]
[1752358667470,2.516,2929.5,2929.4,24.58619]
[1752358667864,2.516,2929.5,2929.4,25.55769]
[1752358668168,2.516,2929.5,2929.4,25.97929]
[1752358672671,2.516,2929.5,2929.4,25.55769]
[1752358680776,2.51233652,2929.5,2929.4,25.55769]
[1752358683380,2.51233652,2929.5,2929.4,25.97999]
[1752358683877,5.1034,2929.9,2929.8,1.2881]
[1752358684177,2.516,2929.9,2929.8,25.9599]
[1752358684479,2.516,2929.9,2929.8,25.5376]
[1752358685781,2.516,2929.9,2929.8,24.5661]
[1752358687280,2.516,2929.9,2929.8,25.5016]
[1752358694582,2.516,2929.9,2929.5,0.9355]
[1752358694783,1.8026889,2929.7,2929.6,24.60675]
[1752358695080,2.4560889,2929.7,2929.6,24.60675]
[1752358695389,3.3629889,2929.7,2929.6,24.60675]
[1752358696488,3.3629889,2929.7,2929.6,24.60775]
[1752358703196,4.0454089,2929.7,2929.6,24.60775]
[1752358703791,3.3629889,2929.7,2929.6,24.60775]
[1752358704690,1.5119889,2929.7,2929.2,4.1433]
[1752358704891,2.4560889,2929.4,2929.3,24.59382]
[1752358705394,3.3629889,2929.4,2929.3,24.59382]
[1752358707494,0.6534,2929.1,2929.0,2.27939]
[1752358707694,2.5044,2929.1,2929.0,25.52939]
[1752358710495,2.5044,2929.1,2929.0,24.59389]
[1752358712899,2.5044,2928.7,2928.6,3.89048]
[1752358713098,3.3629889,2928.7,2928.6,3.89048]
[1752358713407,2.5044,2928.3,2928.2,9.10724102]
[1752358713603,2.5044,2928.3,2928.2,32.10109216]
[1752358713903,2.5044,2928.3,2928.2,27.82387]
[1752358714093,2.5044,2928.3,2928.2,28.75937]
[1752358716896,2.5001,2928.2,2928.1,0.27116963]
[1752358717202,3.3586889,2928.2,2928.1,0.27116963]
[1752358717501,2.5001,2928.2,2928.1,1.3106]
[1752358717700,3.3586889,2928.2,2928.1,0.6278]
[1752358717902,1.4823889,2928.2,2928.0,23.95681]
[1752358718104,1.4823889,2928.2,2928.1,0.6828]
[1752358718702,3.3586889,2928.2,2928.1,0.6828]
[1752358720394,3.3586889,2928.2,2928.0,23.95681]
[1752358720593,3.3586889,2928.2,2927.7,0.9832]
[1752358720594,0.934,2927.5,2926.8,1.9828]
[1752358720796,5.7079,2927.1,2927.0,2.31045]
[1752358721005,5.7079,2927.1,2927.0,3.29365]
[1752358721301,5.7079,2927.1,2927.0,26.74665]
[1752358721502,4.7739,2927.1,2927.0,26.74665]
[1752358722204,5.7079,2927.1,2927.0,26.74665]
[1752358722598,0.934,2927.6,2927.0,33.2718]
[1752358722905,2.5001,2927.8,2927.7,3.29349]
[1752358723104,2.5001,2927.8,2927.4,0.9996]
[1752358723403,3.3586889,2927.6,2927.5,24.4452]
[1752358723599,6.5664889,2927.6,2927.4,0.9996]
[1752358723905,6.5664889,2927.6,2927.3,0.68297]
[1752358723906,2.5001,2927.2,2927.1,2.29402]
[1752358724102,2.5001,2927.2,2927.1,3.29362]
[1752358725204,2.5001,2927.2,2927.1,3.29363]
[1752358725400,2.5001,2927.2,2927.1,2.6106]
[1752358726306,2.5001,2927.2,2927.1,26.76563]
[1752358726806,2.5001,2927.2,2927.1,26.0826]
[1752358727007,2.5001,2927.2,2927.1,26.76563]
[1752358727310,2.5001,2927.2,2927.1,26.0826]
[1752358727509,2.5001,2927.2,2927.1,26.76563]
[1752358728104,3.2078,2927.9,2927.4,0.6278]
[1752358728306,2.5001,2927.6,2927.5,49.59974]
[1752358730705,1.8763,2927.3,2927.2,0.683]
[1752358730907,3.3586889,2927.3,2927.2,0.6278]
[1752358731206,4.0416689,2927.3,2927.2,24.0958]
[1752358731408,4.0416689,2927.3,2927.2,23.468]
[1752358732011,3.3586889,2927.3,2927.2,24.15101]
[1752358732511,3.3586889,2927.3,2927.2,24.16001]
[1752358733006,3.3586889,2927.3,2927.2,24.78781]
[1752358733207,0.934,2926.7,2926.1,1.9828]
[1752358733407,4.7656,2926.4,2926.3,3.29382]
[1752358733608,5.7079,2926.4,2926.3,3.29382]
[1752358733811,5.7079,2926.4,2926.3,2.6106]
[1752358734308,3.18332,2926.3,2926.2,0.6278]
[1752358734611,4.0663889,2926.4,2926.1,24.5492]
[1752358734612,1.30706,2926.2,2926.1,0.6278]
[1752358734811,2.5001,2926.2,2926.1,1.31106]
[1752358735011,2.5001,2926.2,2926.1,3.29386]
[1752358735206,2.5001,2926.2,2926.1,2.6106]
[1752358735411,2.5001,2926.2,2926.1,3.29386]
[1752358735706,4.0419289,2926.2,2926.1,0.6278]
[1752358735907,3.3586889,2926.2,2926.1,0.6278]
[1752358736117,2.5001,2926.2,2926.1,3.29386]
[1752358736306,4.7656,2926.4,2926.3,3.29382]
[1752358737215,3.8316,2926.4,2926.3,3.29382]
[1752358737412,3.2078,2926.4,2926.3,3.29382]
[1752358738214,4.7656,2926.4,2926.3,3.29382]
[1752358738412,5.7079,2926.4,2926.3,3.29382]
[1752358738611,5.7079,2926.4,2926.3,26.85882]
[1752358739312,4.7656,2926.4,2926.3,26.85882]
[1752358740510,3.8316,2926.4,2926.3,26.85882]
[1752358740912,5.7079,2926.4,2926.3,26.85882]
[1752358741111,5.7079,2926.4,2926.3,0.6278]
[1752358741312,3.8316,2926.4,2926.3,0.68322]
[1752358741512,3.8316,2926.4,2926.3,2.31062]
[1752358741705,3.8316,2926.4,2926.3,3.29382]
[1752358741912,2.5001,2926.9,2926.8,3.2937]
[1752358742411,3.3586889,2926.9,2926.7,0.68311]
[1752358742607,2.5001,2926.4,2926.3,2.31062]
[1752358742806,2.5001,2926.4,2926.3,25.94962]
[1752358743614,2.5001,2926.4,2926.3,2.31062]
[1752358743810,2.5001,2926.4,2926.3,25.97062]
[1752358744311,2.5001,2926.4,2926.3,26.95382]
[1752358746310,2.5001,2926.4,2926.3,3.29382]
[1752358746517,2.5001,2926.4,2926.3,24.96002]
[1752358747316,2.5001,2926.4,2926.3,25.88922]
[1752358747519,2.5001,2926.4,2926.3,2.24022]
[1752358747721,2.5001,2926.4,2926.3,24.96002]
[1752358748517,5.7079,2926.4,2926.3,24.96002]
[1752358748914,5.7079,2926.4,2926.3,24.2768]
[1752358749217,5.7079,2926.4,2926.3,24.33222]
[1752358750522,6.39109,2926.4,2926.3,24.33222]
[1752358750721,5.7079,2926.4,2926.3,24.33222]
[1752358750920,5.7079,2926.4,2926.3,26.84372]
[1752358751218,4.7943,2926.7,2926.6,3.19465]
[1752358751619,0.9459,2926.9,2926.8,2.2304]
[1752358751821,3.8242,2927.0,2926.9,1.30118]
[1752358752016,5.769449,2927.0,2926.9,3.19458]
[1752358752221,4.7701,2927.0,2926.9,3.19458]
[1752358752723,3.2078,2927.0,2926.9,3.19458]
[1752358754224,0.6164,2927.2,2927.1,1.30111]
[1752358754426,1.00029359,2927.2,2927.1,25.86931]
[1752358754622,5.7402,2927.6,2927.5,2.23024]
[1752358754926,6.74055979,2927.6,2927.5,50.45744]
[1752358755422,5.7402,2927.9,2927.8,0.68287]
[1752358755627,8.28248502,2927.9,2927.8,2.5115]
[1752358755918,7.59964502,2927.9,2927.8,2.5115]
[1752358756120,7.59964502,2927.9,2927.8,50.46937]
[1752358757025,5.77095612,2927.9,2927.8,50.46937]
[1752358757228,3.8242,2927.9,2927.8,50.46937]
[1752358757428,3.2078,2927.9,2927.8,50.46937]
[1752358758025,4.7701,2927.9,2927.8,50.46937]
[1752358759321,3.8242,2927.9,2927.8,50.46937]
[1752358759528,3.2078,2927.9,2927.8,50.46937]
[1752358760826,5.7402,2927.9,2927.8,50.46937]
[1752358761021,5.7402,2927.9,2927.8,49.50517]
[1752358761527,5.7402,2927.9,2927.1,1.70757]
[1752358761734,3.3909889,2927.6,2927.5,2.23024]
[1752358762032,1.5623,2927.6,2927.5,26.82144]
[1752358764424,2.5324,2927.8,2927.7,0.68289]
[1752358764630,1.5623,2927.8,2927.7,26.84039]
[1752358766029,2.5324,2927.8,2927.7,26.84039]
[1752358767533,3.2078,2927.9,2927.8,1.30097]
[1752358767733,4.7701,2927.9,2927.8,3.19437]
[1752358768033,5.7402,2927.9,2927.8,0.68287]
[1752358768233,5.7402,2927.9,2927.8,24.30587]
[1752358769137,5.7402,2927.9,2927.8,24.92397]
[1752358769433,5.7402,2927.9,2927.8,25.85317]
[1752358769626,5.7402,2927.9,2927.8,26.81737]
[1752358770834,5.7402,2927.9,2927.8,25.87117]
[1752358771532,5.7402,2927.9,2927.8,0.68287]
[1752358771837,5.7402,2927.9,2927.8,24.32187]
[1752358773332,5.7402,2927.9,2927.8,0.68287]
[1752358773333,2.5324,2927.9,2927.8,0.68287]
[1752358773530,2.5324,2927.8,2927.7,0.68289]
[1752358773726,3.3909889,2927.8,2927.7,24.31289]
[1752358774134,3.3909889,2927.8,2927.7,25.86019]
[1752358774842,3.3909889,2927.8,2927.7,26.82439]
[1752358776439,2.5324,2927.8,2927.7,26.82439]
[1752358776640,5.7555,2927.9,2927.8,3.29337]
[1752358776840,4.8216,2927.9,2927.8,3.29337]
[1752358777040,3.8465,2927.9,2927.8,3.29337]
[1752358778038,0.8585889,2928.2,2928.1,2.6105]
[1752358778039,0.9339,2928.2,2928.1,2.6105]
[1752358778237,1.5726,2928.2,2928.1,3.2933]
[1752358778742,2.5477,2928.2,2928.1,3.2933]
[1752358782847,2.5477,2928.5,2928.4,3.29323]
[1752358783043,2.5477,2928.5,2928.4,26.89223]
[1752358784248,3.8465,2928.6,2928.5,3.2932]
[1752358784449,4.8216,2928.6,2928.5,3.2932]
[1752358785147,3.2078,2928.6,2928.5,3.2932]
[1752358785348,1.909,2929.1,2929.0,0.84739]
[1752358785543,3.55340273,2929.1,2929.0,25.41899]
[1752358786252,1.93960273,2929.1,2929.0,25.51829]
[1752358786944,2.57830273,2929.1,2929.0,25.41899]
[1752358787849,2.57830273,2929.1,2929.0,25.51829]
[1752358788047,1.93960273,2929.1,2929.0,25.51829]
[1752358788649,2.57830273,2929.1,2929.0,25.41899]
[1752358788848,1.5726,2929.1,2929.0,25.41899]
[1752358791350,0.9339,2929.1,2929.0,25.51829]
[1752358791540,0.9751,2929.4,2929.3,0.68252]
[1752358791850,2.5477,2929.4,2929.3,48.97692]
[1752358795148,3.4062889,2929.4,2929.3,47.81152]
[1752358796652,3.4062889,2929.4,2929.3,48.78312]
[1752358796653,2.5477,2929.4,2929.3,48.78312]
[1752358798057,1.909,2929.4,2929.3,23.55]
[1752358798354,2.5477,2929.4,2929.3,24.23252]
[1752358798754,0.6387,2929.5,2929.4,0.84729]
[1752358798953,1.5726,2929.5,2929.4,0.84729]
[1752358799355,1.5726,2929.5,2929.4,1.81889]
[1752358799755,2.5477,2929.5,2929.4,1.81889]
[1752358800456,1.5726,2929.5,2929.4,1.81889]
[1752358800953,2.5477,2929.5,2929.4,1.81889]
[1752358801264,2.5477,2929.5,2929.4,0.68249]
[1752358806658,3.23017,2929.5,2929.4,0.68249]
[1752358807056,6.43797,2929.5,2929.4,0.68249]
[1752358807855,1.32462,2929.4,2929.3,0.68251]
[1752358808161,3.22563,2929.3,2929.2,0.68253]
[1752358811658,2.5431,2929.3,2929.2,0.68253]
[1752358811861,2.5431,2929.3,2929.2,1.61413]
[1752358812064,3.22562,2929.3,2929.2,1.61413]
[1752358812265,3.22562,2929.3,2929.2,1.77843]
[1752358812762,2.5431,2929.3,2929.2,1.77843]
[1752358813066,3.22562,2929.3,2929.2,1.77843]
[1752358813866,2.5431,2929.3,2929.2,1.77843]
[1752358814066,3.22562,2929.3,2929.2,1.77843]
[1752358814567,2.5431,2929.3,2929.2,1.77843]
[1752358814969,0.9042,2929.5,2929.3,1.0314]
[1752358815168,0.9042,2929.5,2929.4,0.84679]
[1752358815365,0.9042,2929.5,2929.4,1.87819]
[1752358815869,1.5463,2929.5,2929.4,1.77839]
[1752358816171,2.5431,2929.5,2929.4,1.77839]
[1752358818183,1.5463,2929.5,2929.4,1.77839]
[1752358819271,0.9042,2929.5,2929.4,2.747168]
[1752358819870,0.9042,2929.5,2929.4,1.88129]
[1752358821578,0.9042,2929.5,2929.4,2.76827833]
[1752358822975,3.8499,2929.9,2929.8,0.1647]
[1752358823179,4.8467,2929.9,2929.8,1.7787]
[1752358823380,5.7052889,2929.9,2929.8,1.7787]
[1752358823675,6.6094889,2929.9,2929.8,1.7787]
[1752358827577,5.7509,2929.9,2929.8,1.7787]
[1752358828785,1.5463,2929.9,2929.8,1.8816]
[1752358829083,2.5431,2929.9,2929.8,1.7787]
[1752358829985,0.9042,2929.9,2929.8,1.8816]
[1752358832185,1.5463,2929.9,2929.8,1.8816]
[1752358832588,0.9042,2929.9,2929.8,1.8816]
[1752358832886,1.5463,2929.9,2929.8,1.8816]
[1752358834891,2.5431,2929.9,2929.8,1.8816]
[1752358836191,2.5431,2929.9,2929.8,1.7787]
[1752358847700,0.9322,2930.2,2930.1,0.68233]
[1752358847904,1.5363,2930.6,2930.5,0.68224]
[1752358848104,0.9322,2930.5,2930.4,0.68225]
[1752358848406,1.5363,2930.5,2930.4,0.68225]
[1752358848908,1.5363,2930.5,2930.4,2.24585]
[1752358849103,1.5363,2930.5,2930.4,3.14285]
[1752358849808,2.4583,2930.5,2930.4,3.14285]
[1752358850208,2.4583,2930.5,2930.4,2.24585]
[1752358850408,11.5246889,2930.5,2930.0,1.70585]
[1752358850703,1.5261,2930.3,2930.2,0.68231]
[1752358851207,2.4583,2930.3,2930.2,0.68231]
[1752358851808,3.3168889,2930.3,2930.2,0.68231]
[1752358852909,3.9991789,2930.3,2930.2,0.68231]
[1752358853211,1.28644,2930.2,2930.1,0.68232]
[1752358853505,3.14064,2930.2,2930.1,0.68232]
[1752358853710,0.6041,2929.5,2929.2,3.2078]
[1752358853903,0.6041,2929.5,2929.4,0.68249]
[1752358854109,1.4626889,2929.5,2929.4,0.68249]
[1752358854306,2.4583,2929.5,2929.4,0.68249]
[1752358854507,3.3168889,2929.5,2929.4,0.68249]
[1752358855203,2.1451789,2929.5,2929.4,0.68249]
[1752358855413,3.0671789,2929.5,2929.4,0.68249]
[1752358855804,3.9993789,2929.5,2929.4,0.68249]
[1752358856006,3.3168889,2929.5,2929.4,0.68249]
[1752358856613,3.9993589,2929.5,2929.4,0.68249]
[1752358857204,0.9322,2929.4,2929.3,0.68251]
[1752358857409,2.4583,2929.4,2929.3,0.68251]
[1752358858209,0.6041,2929.4,2929.2,0.68253]
[1752358858513,2.4583,2929.3,2929.2,2.24613]
[1752358860215,2.4583,2929.3,2929.2,1.5636]
[1752358860416,3.14082,2929.3,2929.2,1.5636]
[1752358861419,3.14082,2929.3,2929.2,0.6236]
[1752358862122,2.4583,2929.3,2929.2,0.6236]
[1752358862420,3.14082,2929.3,2929.2,0.6236]
[1752358862619,2.4583,2929.3,2929.2,2.24614]
[1752358862812,1.8542,2929.6,2929.2,2.1647289]
[1752358863011,1.5363,2929.6,2929.5,3.14307]
[1752358863612,2.4583,2929.6,2929.5,3.14307]
[1752358864618,1.5261,2929.6,2929.5,3.14307]
[1752358866024,2.4583,2929.8,2929.7,3.18872]
[1752358866926,2.4583,2929.8,2929.7,2.29172]
[1752358868323,2.4583,2929.8,2929.7,3.18852]
[1752358868823,0.916,2930.3,2930.0,0.6432]
[1752358869021,0.916,2930.3,2930.2,4.0665989]
[1752358869221,2.5112,2930.3,2930.2,3.20801]
[1752358869930,2.5112,2930.3,2930.2,4.0665989]
[1752358870822,3.2078,2930.8,2930.4,0.68226]
[1752358871030,0.916,2931.1,2931.0,3.20782]
[1752358871031,2.13398827,2931.1,2931.0,3.20782]
[1752358871221,4.73482474,2931.1,2931.0,3.20782]
[1752358871417,3.51683647,2931.1,2931.0,3.20782]
[1752358872931,2.57383647,2931.1,2931.0,3.20782]
[1752358873729,3.51683647,2931.1,2931.0,3.20782]
[1752358875130,2.5112,2931.1,2931.0,3.20782]
[1752358877832,2.5112,2931.1,2931.0,1.32532]
[1752358878134,2.5112,2931.1,2931.0,0.68212]
[1752358879733,2.5112,2931.2,2931.1,3.2078]
[1752358879930,2.5112,2931.2,2931.1,6.4156]
[1752358880431,1.5682,2931.2,2931.1,6.4156]
[1752358881032,2.5112,2931.2,2931.1,6.4156]
[1752358881228,2.5112,2931.2,2931.1,5.5188]
[1752358884037,2.5112,2931.2,2931.1,6.4156]
[1752358884836,2.5112,2931.7,2931.6,2.31088]
[1752358885037,2.5112,2931.7,2931.6,3.1694689]
[1752358886130,2.5112,2931.7,2931.6,2.31088]
[1752358888236,2.5112,2931.7,2931.6,4.0662689]
[1752358889742,2.5112,2931.7,2931.6,3.1694689]
[1752358890035,2.5112,2931.7,2931.6,2.31088]
[1752358896847,2.5112,2931.7,2931.6,3.1694689]
[1752358897049,2.5112,2931.7,2931.6,4.0655689]
[1752358899347,3.2078,2932.1,2931.9,1.34251]
[1752358899348,2.5167,2932.0,2931.9,1.34251]
[1752358899550,2.5167,2932.0,2931.9,4.0603989]
[1752358899950,2.5167,2932.0,2931.9,0.68191]
[1752358901154,0.6015,2932.0,2931.9,0.68191]
[1752358901355,1.551,2931.9,2931.8,0.68192]
[1752358901851,2.5167,2931.9,2931.8,0.68192]
[1752358907856,2.5167,2931.9,2931.8,2.30572]
[1752358908454,2.5167,2931.9,2931.8,3.20182]
[1752358909159,2.5167,2931.9,2931.8,6.40962]
[1752358911656,2.5167,2931.9,2931.8,3.20182]
[1752358913562,2.5167,2931.9,2931.8,2.30572]
[1752358913963,2.5167,2931.9,2931.8,3.20182]
[1752358917970,1.551,2931.9,2931.8,3.20182]
[1752358918963,0.9657,2932.1,2932.0,0.68189]
[1752358919168,1.9152,2932.1,2932.0,4.0603789]
[1752358919363,2.5167,2932.3,2932.2,1.34244]
[1752358919563,2.5167,2932.3,2932.2,4.0603289]
[1752358921868,2.5167,2932.3,2932.2,3.1642289]
[1752358922368,2.5167,2932.3,2932.2,2.30564]
[1752358924676,2.5167,2932.3,2932.2,4.0603289]
[1752358928573,2.5167,2932.3,2932.2,2.30564]
[1752358931673,2.5167,2932.3,2932.2,0.68184]
[1752358932279,2.4995,2932.0,2931.9,0.6819]
[1752358932875,3.18139,2932.0,2931.9,0.6819]
[1752358933380,2.4995,2932.0,2931.9,0.6819]
[1752358934879,2.4995,2932.0,2931.9,1.6786]
[1752358935279,2.4995,2932.0,2931.9,0.6819]
[1752358936884,3.18139,2932.0,2931.9,0.6819]
[1752358939182,2.4995,2932.0,2931.9,0.6819]
[1752358940185,3.18139,2932.0,2931.9,0.6819]
[1752358940379,3.18139,2932.0,2931.9,1.6786]
[1752358940585,2.4995,2932.0,2931.9,1.6786]
[1752358942883,1.8569,2932.0,2931.9,3.1814889]
[1752358943083,0.916,2932.2,2932.1,3.21527]
[1752358943287,4.7913,2932.6,2932.5,1.32607]
[1752358943485,6.70976489,2932.6,2932.5,2.32277]
[1752358943685,5.7073,2932.6,2932.5,2.32277]
[1752358943882,2.4995,2932.6,2932.5,3.1813589]
[1752358944184,5.7073,2932.9,2932.8,2.3227]
[1752358944388,1.5586,2932.9,2932.8,4.0736889]
[1752358944691,0.916,2932.9,2932.8,4.0736889]
[1752358944884,2.4995,2933.4,2933.3,1.641]
[1752358945085,3.50217546,2933.4,2933.3,1.641]
[1752358945285,2.4995,2933.4,2933.3,2.32259]
[1752358945986,3.18106,2933.4,2933.3,0.9967]
[1752358946189,0.6426,2933.4,2933.2,0.6816]
[1752358946394,2.4995,2933.3,2933.2,1.6783]
[1752358946591,2.4995,2933.3,2933.2,2.3226]
[1752358948492,1.5586,2933.3,2933.2,4.0735889]
[1752358948695,4.7913,2933.5,2933.4,1.32586]
[1752358948997,5.7073,2933.5,2933.4,4.0735489]
[1752358949798,5.7073,2933.5,2933.4,3.1811489]
[1752358950093,5.7073,2933.5,2933.4,2.32256]
[1752358951401,2.4995,2933.1,2933.0,1.67836]
[1752358953495,2.4995,2933.1,2933.0,0.68166]
[1752358953693,0.6426,2932.9,2932.8,0.6817]
[1752358953996,2.4995,2932.9,2932.8,0.6817]
[1752358954190,2.4995,2932.9,2932.8,1.6784]
[1752358957804,2.4995,2932.9,2932.6,0.9488]
[1752358957805,0.6426,2932.9,2932.6,0.9488]
[1752358957989,2.5917,2932.7,2932.6,0.9488]
[1752358958292,3.27343,2932.7,2932.6,1.63055]
[1752358958501,3.27343,2932.7,2932.6,0.9488]
[1752358958802,2.5627189,2933.1,2932.5,3.88956]
[1752358958803,1.33185,2932.6,2932.5,3.88956]
[1752358959097,3.27345,2932.6,2932.5,4.83836]
[1752358960202,2.5917,2932.6,2932.5,4.83836]
[1752358961106,3.27345,2932.6,2932.5,0.9488]
[1752358961403,3.27345,2932.6,2932.5,1.63057]
[1752358961802,2.5917,2932.6,2932.5,1.63057]
[1752358962502,2.5917,2932.6,2932.1,5.80695]
[1752358962704,0.9756,2932.2,2932.1,0.68187]
[1752358962910,2.5917,2932.2,2932.1,1.63067]
[1752358963103,3.27354,2932.2,2932.1,0.68187]
[1752358963295,0.9756,2932.1,2932.0,0.68189]
[1752358963499,2.5917,2932.1,2931.6,25.1673]
[1752358963706,0.6501,2931.7,2931.6,26.45788]
[1752358963907,2.5917,2931.7,2931.6,26.45788]
[1752358967613,1.6161,2931.7,2931.6,26.45788]
[1752358967917,0.966,2931.7,2931.6,26.45788]
[1752358971420,2.5917,2931.9,2931.8,3.13384]
[1752358971621,2.5917,2931.9,2931.8,3.9924289]
[1752358972115,2.5917,2931.9,2931.8,2.23934]
[1752358972319,2.5917,2931.9,2931.8,1.63074]
[1752358973321,2.5917,2931.9,2931.8,0.68194]
[1752358978124,2.5917,2931.9,2931.8,2.23934]
[1752358978620,2.5917,2931.9,2931.8,5.44714]
[1752358979019,2.5917,2931.9,2931.8,2.23934]
[1752358981925,2.5917,2931.9,2931.8,3.13384]
[1752358982126,1.6161,2931.9,2931.8,3.13384]
[1752358982524,2.5917,2931.9,2931.8,3.13384]
[1752358982725,1.6161,2931.9,2931.8,3.13384]
[1752358982927,2.5917,2932.1,2932.0,3.13379]
[1752358983829,2.5917,2932.1,2932.0,2.23929]